[Event "*** Titled Tuesday Blitz"]
[Site "Chess.com"]
[Date "2018.06.05"]
[Round "6"]
[White "albi1999"]
[Black "andrewtnb"]
[Result "1/2-1/2"]
[WhiteElo "2532"]
[BlackElo "2383"]
[TimeControl "180+2"]
[EndTime "14:29:38 PDT"]
[Termination "Game drawn by repetition"]

1. d4 {[%clk 0:03:01.9]} 1... d5 {[%clk 0:03:00.1]} 2. c4 {[%clk 0:03:02.9]}
2... dxc4 {[%clk 0:02:59.9]} 3. Nf3 {[%clk 0:03:03.7]} 3... Nf6 {[%clk
0:03:00.7]} 4. e3 {[%clk 0:03:05]} 4... e6 {[%clk 0:03:01.4]} 5. Bxc4 {[%clk
0:03:06.5]} 5... c5 {[%clk 0:03:02.6]} 6. O-O {[%clk 0:03:07.7]} 6... a6 {[%clk
0:03:04.1]} 7. Nc3 {[%clk 0:03:08.7]} 7... b5 {[%clk 0:03:04.4]} 8. Be2 {[%clk
0:03:09.6]} 8... Nbd7 {[%clk 0:02:59.6]} 9. dxc5 {[%clk 0:03:10.4]} 9... Nxc5
{[%clk 0:02:58.5]} 10. Qxd8+ {[%clk 0:03:10.6]} 10... Kxd8 {[%clk 0:02:59.5]}
11. Ne5 {[%clk 0:03:10.9]} 11... Ke8 {[%clk 0:02:58.5]} 12. Bf3 {[%clk
0:03:11.7]} 12... Bb7 {[%clk 0:02:45.6]} 13. Bxb7 {[%clk 0:03:08.5]} 13... Nxb7
{[%clk 0:02:46.3]} 14. Rd1 {[%clk 0:03:07.8]} 14... Rc8 {[%clk 0:02:41.5]} 15.
Ne2 {[%clk 0:02:57.6]} 15... Bd6 {[%clk 0:02:38.9]} 16. Nd3 {[%clk 0:02:56.3]}
16... Ke7 {[%clk 0:02:39.7]} 17. Bd2 {[%clk 0:02:57.3]} 17... Ne4 {[%clk
0:02:37.7]} 18. Be1 {[%clk 0:02:50.3]} 18... Nbc5 {[%clk 0:02:34.3]} 19. f3
{[%clk 0:02:32.6]} 19... Nxd3 {[%clk 0:02:32.4]} 20. Rxd3 {[%clk 0:02:34.5]}
20... Nc5 {[%clk 0:02:30.1]} 21. Rdd1 {[%clk 0:02:30.3]} 21... Be5 {[%clk
0:02:29.6]} 22. Bc3 {[%clk 0:02:28.5]} 22... Bxc3 {[%clk 0:02:29.8]} 23. Nxc3
{[%clk 0:02:30.4]} 23... b4 {[%clk 0:02:28.4]} 24. Ne2 {[%clk 0:02:29.4]} 24...
Na4 {[%clk 0:02:19.6]} 25. Rd2 {[%clk 0:02:28.5]} 25... Rhd8 {[%clk 0:02:19.5]}
26. Rad1 {[%clk 0:02:28.6]} 26... Rxd2 {[%clk 0:02:19.9]} 27. Rxd2 {[%clk
0:02:30.5]} 27... Rd8 {[%clk 0:02:17.2]} 28. Rc2 {[%clk 0:02:25.2]} 28... Rd1+
{[%clk 0:01:22.8]} 29. Kf2 {[%clk 0:02:24.7]} 29... Kd6 {[%clk 0:01:19.6]} 30.
b3 {[%clk 0:02:00.6]} 30... Nc5 {[%clk 0:01:14.1]} 31. Nf4 {[%clk 0:01:50.1]}
31... g5 {[%clk 0:01:10.5]} 32. Ke2 {[%clk 0:01:45.5]} 32... Rg1 {[%clk
0:01:05.5]} 33. Rd2+ {[%clk 0:01:45.4]} 33... Kc6 {[%clk 0:01:04.3]} 34. Kf2
{[%clk 0:01:44.4]} 34... Rh1 {[%clk 0:00:56.3]} 35. Nh3 {[%clk 0:01:41.7]} 35...
h6 {[%clk 0:00:56.5]} 36. e4 {[%clk 0:01:20.9]} 36... Rc1 {[%clk 0:00:51.5]} 37.
Ng1 {[%clk 0:01:15.9]} 37... a5 {[%clk 0:00:47.8]} 38. Ne2 {[%clk 0:01:16.6]}
38... Ra1 {[%clk 0:00:46.8]} 39. Nd4+ {[%clk 0:01:15.2]} 39... Kb6 {[%clk
0:00:47.5]} 40. Rc2 {[%clk 0:01:03.6]} 40... a4 {[%clk 0:00:45.3]} 41. bxa4
{[%clk 0:01:04]} 41... Nxa4 {[%clk 0:00:46]} 42. Ne2 {[%clk 0:01:02.9]} 42...
Kb5 {[%clk 0:00:44]} 43. Ke3 {[%clk 0:01:02.7]} 43... Nc5 {[%clk 0:00:43.4]} 44.
g3 {[%clk 0:01:00.1]} 44... Rd1 {[%clk 0:00:43.1]} 45. Rb2 {[%clk 0:00:55]}
45... Rd3+ {[%clk 0:00:43.2]} 46. Kf2 {[%clk 0:00:55]} 46... Ra3 {[%clk
0:00:43.5]} 47. Rc2 {[%clk 0:00:45]} 47... Nd3+ {[%clk 0:00:42.1]} 48. Kf1
{[%clk 0:00:40.9]} 48... Ne5 {[%clk 0:00:42.6]} 49. Nd4+ {[%clk 0:00:37.3]}
49... Kb6 {[%clk 0:00:40.5]} 50. f4 {[%clk 0:00:25.2]} 50... gxf4 {[%clk
0:00:36.8]} 51. gxf4 {[%clk 0:00:27.1]} 51... Rd3 {[%clk 0:00:33.3]} 52. Ne2
{[%clk 0:00:20.2]} 52... Ng4 {[%clk 0:00:30.9]} 53. Rb2 {[%clk 0:00:21.2]} 53...
Kb5 {[%clk 0:00:29]} 54. h3 {[%clk 0:00:20.9]} 54... Ne3+ {[%clk 0:00:28.2]} 55.
Ke1 {[%clk 0:00:22]} 55... Nc4 {[%clk 0:00:28.4]} 56. Rc2 {[%clk 0:00:20.7]}
56... Rxh3 {[%clk 0:00:28.7]} 57. Nd4+ {[%clk 0:00:20.8]} 57... Kc5 {[%clk
0:00:29.8]} 58. Nb3+ {[%clk 0:00:22.2]} 58... Kb5 {[%clk 0:00:30.5]} 59. Nd4+
{[%clk 0:00:23.6]} 59... Kc5 {[%clk 0:00:31.3]} 60. Nb3+ {[%clk 0:00:25.1]}
60... Kb5 {[%clk 0:00:31.7]} 61. Nd4+ {[%clk 0:00:26.6]} 61... Kc5 {[%clk
0:00:32.6]} 62. Nb3+ {[%clk 0:00:20.4]} 62... Kb5 {[%clk 0:00:33.6]} 63. Nd4+
{[%clk 0:00:21.7]} 63... Kc5 {[%clk 0:00:34.7]} 64. Nb3+ {[%clk 0:00:22.9]}
1/2-1/2

[Event "*** Titled Tuesday Blitz"]
[Site "Chess.com"]
[Date "2018.06.05"]
[Round "6"]
[White "Alopekos"]
[Black "krzysztofszczurek"]
[Result "1-0"]
[WhiteElo "2354"]
[BlackElo "2163"]
[TimeControl "180+2"]
[EndTime "14:29:49 PDT"]
[Termination "Alopekos won by resignation"]

1. e4 {[%clk 0:03:01.9]} 1... c5 {[%clk 0:03:00.1]} 2. Nf3 {[%clk 0:03:03]} 2...
d6 {[%clk 0:03:00.9]} 3. d4 {[%clk 0:03:04.4]} 3... cxd4 {[%clk 0:03:01.7]} 4.
Nxd4 {[%clk 0:03:06.2]} 4... Nf6 {[%clk 0:03:02.8]} 5. Nc3 {[%clk 0:03:07.7]}
5... a6 {[%clk 0:03:03.3]} 6. Be3 {[%clk 0:03:09]} 6... e5 {[%clk 0:03:03.2]} 7.
Nb3 {[%clk 0:03:10.3]} 7... Be7 {[%clk 0:03:04.1]} 8. Be2 {[%clk 0:03:11.2]}
8... O-O {[%clk 0:03:04.4]} 9. O-O {[%clk 0:03:11.9]} 9... Be6 {[%clk 0:03:05]}
10. Nd5 {[%clk 0:03:12.8]} 10... Bxd5 {[%clk 0:03:04.1]} 11. exd5 {[%clk
0:03:14.7]} 11... Nbd7 {[%clk 0:03:05.1]} 12. c4 {[%clk 0:03:15.8]} 12... Rc8
{[%clk 0:03:05.3]} 13. Qd2 {[%clk 0:03:09]} 13... Ne4 {[%clk 0:03:03.2]} 14. Qb4
{[%clk 0:03:09]} 14... Qc7 {[%clk 0:02:56]} 15. f3 {[%clk 0:03:02.9]} 15... Nec5
{[%clk 0:02:54.7]} 16. Na5 {[%clk 0:02:54.8]} 16... f5 {[%clk 0:02:49.4]} 17.
Qa3 {[%clk 0:02:53]} 17... Nb6 {[%clk 0:02:31.3]} 18. b4 {[%clk 0:02:48.2]}
18... Ncd7 {[%clk 0:02:31.9]} 19. Rac1 {[%clk 0:02:40]} 19... Qb8 {[%clk
0:02:20]} 20. c5 {[%clk 0:01:40.7]} 20... dxc5 {[%clk 0:02:05.2]} 21. bxc5
{[%clk 0:01:42.6]} 21... Nxd5 {[%clk 0:01:53.6]} 22. Qb3 {[%clk 0:01:42.5]}
22... Nf6 {[%clk 0:01:53.5]} 23. Bc4 {[%clk 0:01:41.3]} 23... Rfd8 {[%clk
0:01:53]} 24. Rfd1 {[%clk 0:00:36.6]} 24... Rxc5 {[%clk 0:01:23.8]} 25. Bxc5
{[%clk 0:00:34.3]} 25... Bxc5+ {[%clk 0:01:23.9]} 26. Kh1 {[%clk 0:00:35.6]}
26... Bd4 {[%clk 0:01:24.8]} 27. Qxb7 {[%clk 0:00:27.3]} 27... Qxb7 {[%clk
0:01:20.3]} 28. Nxb7 {[%clk 0:00:29.2]} 28... Rb8 {[%clk 0:01:20.2]} 29. Bxa6
{[%clk 0:00:19.7]} 29... Ne3 {[%clk 0:01:14.2]} 30. Rd2 {[%clk 0:00:16.8]} 30...
Nfd5 {[%clk 0:01:03.3]} 31. Nd6 {[%clk 0:00:13.3]} 31... g6 {[%clk 0:00:52.7]}
32. Rc8+ {[%clk 0:00:13.6]} 32... Rxc8 {[%clk 0:00:52.9]} 33. Bxc8 {[%clk
0:00:14.6]} 33... Nc3 {[%clk 0:00:47.6]} 34. Be6+ {[%clk 0:00:11.1]} 34... Kf8
{[%clk 0:00:45.9]} 35. Bb3 {[%clk 0:00:11.2]} 35... Nb1 {[%clk 0:00:40.7]} 36.
Re2 {[%clk 0:00:09.1]} 36... Na3 {[%clk 0:00:40]} 37. Ba4 {[%clk 0:00:05.8]}
37... Ke7 {[%clk 0:00:38.4]} 38. Nb5 {[%clk 0:00:05.9]} 38... Nac4 {[%clk
0:00:35.4]} 39. f4 {[%clk 0:00:06]} 39... Kf6 {[%clk 0:00:31.5]} 40. fxe5+
{[%clk 0:00:06.3]} 40... Bxe5 {[%clk 0:00:31.9]} 41. Bb3 {[%clk 0:00:06.4]}
41... f4 {[%clk 0:00:27.6]} 42. Bxc4 {[%clk 0:00:07.1]} 42... Nxc4 {[%clk
0:00:28.3]} 43. a4 {[%clk 0:00:08.4]} 43... g5 {[%clk 0:00:25.6]} 44. Rc2 {[%clk
0:00:09.7]} 44... Na5 {[%clk 0:00:25.4]} 45. Na3 {[%clk 0:00:06.9]} 45... Bd4
{[%clk 0:00:21.5]} 46. Nc4 {[%clk 0:00:06.7]} 46... Nb3 {[%clk 0:00:21.5]} 47.
a5 {[%clk 0:00:08]} 47... g4 {[%clk 0:00:21.3]} 48. a6 {[%clk 0:00:02.9]} 48...
f3 {[%clk 0:00:19]} 49. gxf3 {[%clk 0:00:04.8]} 49... gxf3 {[%clk 0:00:19.6]}
50. Nd2 {[%clk 0:00:06.4]} 50... f2 {[%clk 0:00:18.5]} 51. Kg2 {[%clk
0:00:06.5]} 51... Na5 {[%clk 0:00:18.5]} 52. Nf3 {[%clk 0:00:05.2]} 52... Ba7
{[%clk 0:00:17.4]} 53. Rc7 {[%clk 0:00:06.1]} 53... Bb6 {[%clk 0:00:15.3]} 54.
Rc2 {[%clk 0:00:06]} 54... Kf5 {[%clk 0:00:14]} 55. Rb2 {[%clk 0:00:06.6]} 55...
Ba7 {[%clk 0:00:13.8]} 56. Rb5+ {[%clk 0:00:07.6]} 56... Kf4 {[%clk 0:00:14.1]}
57. Rxa5 {[%clk 0:00:09.5]} 57... Ke3 {[%clk 0:00:15]} 58. Ra2 {[%clk
0:00:08.9]} 58... Ke4 {[%clk 0:00:14.1]} 59. Rxf2 {[%clk 0:00:10.8]} 1-0

[Event "*** Titled Tuesday Blitz"]
[Site "Chess.com"]
[Date "2018.06.05"]
[Round "6"]
[White "orrbaverlekszarnyon"]
[Black "alpasya2009"]
[Result "1/2-1/2"]
[WhiteElo "2267"]
[BlackElo "2387"]
[TimeControl "180+2"]
[EndTime "14:29:56 PDT"]
[Termination "Game drawn by agreement"]

1. e4 {[%clk 0:03:01.9]} 1... d6 {[%clk 0:03:01.9]} 2. d4 {[%clk 0:03:02.7]}
2... Nf6 {[%clk 0:03:03.8]} 3. Nc3 {[%clk 0:03:03]} 3... e5 {[%clk 0:03:05.3]}
4. dxe5 {[%clk 0:03:03.6]} 4... dxe5 {[%clk 0:03:07.2]} 5. Qxd8+ {[%clk
0:03:04.8]} 5... Kxd8 {[%clk 0:03:08.7]} 6. Bg5 {[%clk 0:03:06.4]} 6... c6
{[%clk 0:03:09.5]} 7. Nf3 {[%clk 0:03:07.2]} 7... Nd7 {[%clk 0:03:08.3]} 8.
O-O-O {[%clk 0:03:08.3]} 8... Ke8 {[%clk 0:03:08.6]} 9. Bxf6 {[%clk 0:03:05.1]}
9... gxf6 {[%clk 0:03:07.3]} 10. Bc4 {[%clk 0:03:04.5]} 10... b5 {[%clk
0:03:04.1]} 11. Bb3 {[%clk 0:03:04.3]} 11... Nc5 {[%clk 0:03:04.5]} 12. Kb1
{[%clk 0:02:42.1]} 12... Nxb3 {[%clk 0:02:58.2]} 13. axb3 {[%clk 0:02:42.8]}
13... Bc5 {[%clk 0:02:59.6]} 14. Rhf1 {[%clk 0:02:39.5]} 14... Be6 {[%clk
0:02:59.1]} 15. Ne1 {[%clk 0:02:39]} 15... a5 {[%clk 0:02:57.7]} 16. Nd3 {[%clk
0:02:38.8]} 16... Bd4 {[%clk 0:02:56.7]} 17. f4 {[%clk 0:02:36]} 17... Ke7
{[%clk 0:02:53.7]} 18. f5 {[%clk 0:02:32.3]} 18... Bd7 {[%clk 0:02:52.6]} 19.
Ne2 {[%clk 0:02:31.6]} 19... Bb6 {[%clk 0:02:52.7]} 20. c3 {[%clk 0:02:16.3]}
20... Rhd8 {[%clk 0:02:45.5]} 21. Kc2 {[%clk 0:02:13.5]} 21... c5 {[%clk
0:02:39]} 22. b4 {[%clk 0:01:56.5]} 22... axb4 {[%clk 0:02:24.9]} 23. cxb4
{[%clk 0:01:57.1]} 23... c4 {[%clk 0:02:20]} 24. Nc5 {[%clk 0:01:58.1]} 24...
Bc6 {[%clk 0:02:14.1]} 25. Nc3 {[%clk 0:01:55.7]} 25... Bxc5 {[%clk 0:02:13.3]}
26. bxc5 {[%clk 0:01:57.6]} 26... b4 {[%clk 0:02:14.3]} 27. Nd5+ {[%clk
0:01:55.6]} 27... Bxd5 {[%clk 0:02:13.8]} 28. exd5 {[%clk 0:01:57.5]} 28... Ra5
{[%clk 0:02:08.3]} 29. d6+ {[%clk 0:01:52.8]} 29... Kd7 {[%clk 0:02:08.6]} 30.
Ra1 {[%clk 0:01:36.5]} 30... Rxc5 {[%clk 0:02:01.6]} 31. Ra7+ {[%clk 0:01:35.5]}
31... Ke8 {[%clk 0:02:02.5]} 32. Rd1 {[%clk 0:01:26.9]} 32... Rc6 {[%clk
0:02:00.7]} 33. Rb7 {[%clk 0:01:13.7]} 33... b3+ {[%clk 0:01:26.4]} 34. Kc3
{[%clk 0:01:14.3]} 34... Rcxd6 {[%clk 0:01:27.5]} 35. Rxd6 {[%clk 0:01:15.6]}
35... Rxd6 {[%clk 0:01:29.1]} 36. Kxc4 {[%clk 0:01:17.5]} 36... Rd2 {[%clk
0:01:30.3]} 37. Rxb3 {[%clk 0:01:18.2]} 37... Rxg2 {[%clk 0:01:30]} 38. Rb8+
{[%clk 0:01:10.4]} 38... Ke7 {[%clk 0:01:29.8]} 39. b4 {[%clk 0:01:11.7]} 39...
Rxh2 {[%clk 0:01:28.1]} 40. b5 {[%clk 0:01:13.2]} 40... Rb2 {[%clk 0:01:20.2]}
41. Kd5 {[%clk 0:01:13.7]} 41... h5 {[%clk 0:01:19.4]} 42. b6 {[%clk 0:01:12.2]}
42... h4 {[%clk 0:01:19.7]} 43. Kc6 {[%clk 0:01:09]} 43... h3 {[%clk 0:01:16.7]}
44. Rh8 {[%clk 0:01:09.4]} 44... h2 {[%clk 0:01:13.9]} 45. b7 {[%clk 0:01:10.6]}
45... e4 {[%clk 0:01:04.4]} 46. Rxh2 {[%clk 0:01:08.7]} 46... Rxh2 {[%clk
0:01:05.3]} 47. b8=Q {[%clk 0:01:07.9]} 47... Rc2+ {[%clk 0:01:06.1]} 48. Kd5
{[%clk 0:01:07.6]} 48... Rd2+ {[%clk 0:01:07.1]} 49. Kxe4 {[%clk 0:01:07.9]}
49... Rd7 {[%clk 0:01:09]} 50. Qb4+ {[%clk 0:01:07.2]} 50... Ke8 {[%clk
0:01:09.9]} 51. Qb8+ {[%clk 0:01:07.2]} 51... Ke7 {[%clk 0:01:10.1]} 52. Qb6
{[%clk 0:01:06.7]} 52... Ke8 {[%clk 0:01:07.4]} 53. Kf4 {[%clk 0:01:03.8]} 53...
Ke7 {[%clk 0:01:08]} 54. Qc5+ {[%clk 0:01:03.3]} 54... Ke8 {[%clk 0:01:08.1]}
55. Kg4 {[%clk 0:01:03.7]} 55... Rd1 {[%clk 0:01:02.3]} 56. Qb5+ {[%clk
0:00:57.5]} 56... Kf8 {[%clk 0:01:03.3]} 57. Qe2 {[%clk 0:00:47.5]} 57... Rd5
{[%clk 0:00:57.5]} 58. Qe4 {[%clk 0:00:46.2]} 58... Re5 {[%clk 0:00:57.2]} 59.
Qb4+ {[%clk 0:00:42.6]} 59... Kg7 {[%clk 0:00:58.1]} 60. Kf4 {[%clk 0:00:44]}
60... Re8 {[%clk 0:00:56.5]} 61. Qd2 {[%clk 0:00:42.6]} 61... Re5 {[%clk
0:00:57.4]} 62. Qg2+ {[%clk 0:00:42]} 62... Kf8 {[%clk 0:00:58.3]} 63. Qh2
{[%clk 0:00:42.9]} 63... Kg7 {[%clk 0:00:51.9]} 64. Qg3+ {[%clk 0:00:39.3]}
64... Kf8 {[%clk 0:00:52.5]} 65. Qa3+ {[%clk 0:00:39.3]} 65... Kg7 {[%clk
0:00:53.2]} 66. Qd6 {[%clk 0:00:39.3]} 66... Re8 {[%clk 0:00:52.9]} 67. Kg4
{[%clk 0:00:35.4]} 67... Re5 {[%clk 0:00:53.2]} 68. Kf4 {[%clk 0:00:35.6]} 68...
Re8 {[%clk 0:00:53.4]} 69. Qc7 {[%clk 0:00:35.8]} 69... Re5 {[%clk 0:00:52.7]}
1/2-1/2

[Event "*** Titled Tuesday Blitz"]
[Site "Chess.com"]
[Date "2018.06.05"]
[Round "6"]
[White "nabukatnezarr"]
[Black "NDePinEsPeRG"]
[Result "0-1"]
[WhiteElo "2341"]
[BlackElo "2627"]
[TimeControl "180+2"]
[EndTime "14:30:01 PDT"]
[Termination "NDePinEsPeRG won by checkmate"]

1. Nf3 {[%clk 0:03:01.9]} 1... c5 {[%clk 0:02:59.8]} 2. e4 {[%clk 0:02:57.5]}
2... d6 {[%clk 0:02:59.5]} 3. d4 {[%clk 0:02:52.8]} 3... cxd4 {[%clk 0:02:59.7]}
4. Nxd4 {[%clk 0:02:54.3]} 4... Nf6 {[%clk 0:02:59.9]} 5. Nc3 {[%clk 0:02:52.1]}
5... Nc6 {[%clk 0:03:00.1]} 6. Bc4 {[%clk 0:02:47]} 6... Bd7 {[%clk 0:02:55.5]}
7. Be3 {[%clk 0:02:39.5]} 7... g6 {[%clk 0:02:45.8]} 8. f3 {[%clk 0:02:32.3]}
8... Bg7 {[%clk 0:02:45.9]} 9. Bb3 {[%clk 0:02:24.9]} 9... O-O {[%clk
0:02:43.8]} 10. Qd2 {[%clk 0:02:25.7]} 10... Nxd4 {[%clk 0:02:43.4]} 11. Bxd4
{[%clk 0:02:26.4]} 11... b5 {[%clk 0:02:44]} 12. h4 {[%clk 0:02:20.9]} 12... h5
{[%clk 0:02:26.8]} 13. g4 {[%clk 0:02:03.4]} 13... e5 {[%clk 0:02:03.2]} 14. Be3
{[%clk 0:01:59.2]} 14... hxg4 {[%clk 0:02:03.8]} 15. Bg5 {[%clk 0:01:56]} 15...
gxf3 {[%clk 0:01:50.1]} 16. Qxd6 {[%clk 0:01:27.4]} 16... Bg4 {[%clk 0:01:43.8]}
17. O-O-O {[%clk 0:01:06.3]} 17... Qxd6 {[%clk 0:01:15.8]} 18. Rxd6 {[%clk
0:01:08.2]} 18... b4 {[%clk 0:01:04.3]} 19. Bxf6 {[%clk 0:00:33.2]} 19... bxc3
{[%clk 0:01:04.4]} 20. Rg1 {[%clk 0:00:14.7]} 20... Bh5 {[%clk 0:00:50.2]} 21.
Bg5 {[%clk 0:00:09.8]} 21... cxb2+ {[%clk 0:00:47.1]} 22. Kxb2 {[%clk
0:00:11.7]} 22... Kh7 {[%clk 0:00:45.2]} 23. Bd5 {[%clk 0:00:11.5]} 23... Rab8+
{[%clk 0:00:45.5]} 24. Ka3 {[%clk 0:00:12.7]} 24... f6 {[%clk 0:00:45.2]} 25.
Be3 {[%clk 0:00:12.8]} 25... Rfd8 {[%clk 0:00:38.8]} 26. Rxd8 {[%clk 0:00:13.7]}
26... Rxd8 {[%clk 0:00:39.2]} 27. Bxa7 {[%clk 0:00:14.8]} 27... f5 {[%clk
0:00:38.7]} 28. c4 {[%clk 0:00:14.4]} 28... fxe4 {[%clk 0:00:34.4]} 29. Bxe4
{[%clk 0:00:16.3]} 29... Bf8+ {[%clk 0:00:32.9]} 30. Kb3 {[%clk 0:00:16.3]}
30... Rd7 {[%clk 0:00:29.5]} 31. Be3 {[%clk 0:00:16.2]} 31... Rf7 {[%clk
0:00:28.7]} 32. c5 {[%clk 0:00:13.7]} 32... Be7 {[%clk 0:00:28.4]} 33. c6 {[%clk
0:00:13.4]} 33... Bxh4 {[%clk 0:00:29]} 34. Rh1 {[%clk 0:00:14.7]} 34... f2
{[%clk 0:00:28.3]} 35. Bxf2 {[%clk 0:00:13.4]} 35... Bxf2 {[%clk 0:00:28.1]} 36.
Rxh5+ {[%clk 0:00:14.6]} 36... Kg7 {[%clk 0:00:29.4]} 37. Rxe5 {[%clk
0:00:16.2]} 37... Kf6 {[%clk 0:00:28.4]} 38. Rd5 {[%clk 0:00:14.8]} 38... Bg3
{[%clk 0:00:28.7]} 39. Rd3 {[%clk 0:00:15.5]} 39... Bc7 {[%clk 0:00:28.6]} 40.
Bd5 {[%clk 0:00:15.8]} 40... Rg7 {[%clk 0:00:29]} 41. Kc4 {[%clk 0:00:15.8]}
41... g5 {[%clk 0:00:29.7]} 42. Kb5 {[%clk 0:00:16.9]} 42... g4 {[%clk
0:00:30.5]} 43. Ka6 {[%clk 0:00:17.8]} 43... g3 {[%clk 0:00:31]} 44. Bg2 {[%clk
0:00:19.4]} 44... Bf4 {[%clk 0:00:31.2]} 45. Rb3 {[%clk 0:00:18.4]} 45... Re7
{[%clk 0:00:29.7]} 46. Rb2 {[%clk 0:00:16.9]} 46... Kg5 {[%clk 0:00:29.4]} 47.
Rc2 {[%clk 0:00:16.4]} 47... Bc7 {[%clk 0:00:26.7]} 48. Kb7 {[%clk 0:00:15.7]}
48... Kf4 {[%clk 0:00:27.3]} 49. a4 {[%clk 0:00:15]} 49... Ke3 {[%clk
0:00:27.3]} 50. Kc8 {[%clk 0:00:13.1]} 50... Rg7 {[%clk 0:00:27.1]} 51. Kb7
{[%clk 0:00:11.5]} 51... Kd3 {[%clk 0:00:27.4]} 52. Rc1 {[%clk 0:00:12.2]} 52...
Bf4+ {[%clk 0:00:27.1]} 53. c7 {[%clk 0:00:06.5]} 53... Bxc1 {[%clk 0:00:27.7]}
54. Kb6 {[%clk 0:00:02.8]} 54... Be3+ {[%clk 0:00:27.1]} 55. Kc6 {[%clk
0:00:04.1]} 55... Rg8 {[%clk 0:00:23.7]} 56. Bh3 {[%clk 0:00:05.4]} 56... Bf4
{[%clk 0:00:22.7]} 57. Kb7 {[%clk 0:00:06.3]} 57... Bxc7 {[%clk 0:00:23.2]} 58.
Kxc7 {[%clk 0:00:08.2]} 58... g2 {[%clk 0:00:21.5]} 59. Bxg2 {[%clk 0:00:09.4]}
59... Rxg2 {[%clk 0:00:23]} 60. a5 {[%clk 0:00:11.1]} 60... Rg7+ {[%clk
0:00:22.6]} 61. Kb6 {[%clk 0:00:11.9]} 61... Kc4 {[%clk 0:00:22.7]} 62. a6
{[%clk 0:00:13.3]} 62... Rg6+ {[%clk 0:00:23.8]} 63. Kb7 {[%clk 0:00:14.5]}
63... Kb5 {[%clk 0:00:24.5]} 64. a7 {[%clk 0:00:16]} 64... Rg7+ {[%clk 0:00:26]}
65. Kb8 {[%clk 0:00:17.4]} 65... Kb6 {[%clk 0:00:27]} 66. a8=Q {[%clk 0:00:19]}
66... Rg8# {[%clk 0:00:26.7]} 0-1

[Event "*** Titled Tuesday Blitz"]
[Site "Chess.com"]
[Date "2018.06.05"]
[Round "6"]
[White "enriquetejedor"]
[Black "Man-Chuk"]
[Result "1/2-1/2"]
[WhiteElo "2561"]
[BlackElo "2616"]
[TimeControl "180+2"]
[EndTime "14:30:03 PDT"]
[Termination "Game drawn by stalemate"]

1. e4 {[%clk 0:02:53.7]} 1... c6 {[%clk 0:02:59.2]} 2. Nc3 {[%clk 0:02:53.7]}
2... d5 {[%clk 0:02:59.6]} 3. d4 {[%clk 0:02:55.3]} 3... dxe4 {[%clk 0:02:59]}
4. Nxe4 {[%clk 0:02:57.2]} 4... Bf5 {[%clk 0:02:59.8]} 5. Ng3 {[%clk 0:02:58.2]}
5... Bg6 {[%clk 0:03:01.2]} 6. Nf3 {[%clk 0:03:00]} 6... e6 {[%clk 0:02:55.6]}
7. Bd3 {[%clk 0:03:01.1]} 7... Bxd3 {[%clk 0:02:54.3]} 8. Qxd3 {[%clk 0:03:03]}
8... Nf6 {[%clk 0:02:54.5]} 9. O-O {[%clk 0:03:04.5]} 9... c5 {[%clk 0:02:54.9]}
10. Rd1 {[%clk 0:03:01.1]} 10... Nc6 {[%clk 0:02:54.7]} 11. Be3 {[%clk
0:02:59.4]} 11... Qb6 {[%clk 0:02:35.1]} 12. dxc5 {[%clk 0:02:58.2]} 12... Bxc5
{[%clk 0:02:34.9]} 13. Bxc5 {[%clk 0:02:58.5]} 13... Qxc5 {[%clk 0:02:27.6]} 14.
c3 {[%clk 0:02:57]} 14... O-O {[%clk 0:02:27.5]} 15. Ne4 {[%clk 0:02:57.2]}
15... Nxe4 {[%clk 0:02:27.4]} 16. Qxe4 {[%clk 0:02:41.1]} 16... Rad8 {[%clk
0:02:27.3]} 17. h3 {[%clk 0:02:38.6]} 17... h6 {[%clk 0:02:20.7]} 18. g3 {[%clk
0:02:36.8]} 18... a5 {[%clk 0:02:14.4]} 19. Kg2 {[%clk 0:02:34.2]} 19... b5
{[%clk 0:02:14.6]} 20. a4 {[%clk 0:02:34.1]} 20... b4 {[%clk 0:02:14.6]} 21.
cxb4 {[%clk 0:02:34.6]} 21... Nxb4 {[%clk 0:02:12.8]} 22. Rac1 {[%clk
0:02:34.4]} 22... Qb6 {[%clk 0:02:11.7]} 23. h4 {[%clk 0:02:31]} 23... Nd5
{[%clk 0:02:01.3]} 24. Rd2 {[%clk 0:02:27.9]} 24... Rb8 {[%clk 0:01:53.6]} 25.
Ne5 {[%clk 0:02:21.1]} 25... Rb7 {[%clk 0:01:54.1]} 26. Rc6 {[%clk 0:02:16.7]}
26... Qb4 {[%clk 0:01:52.7]} 27. Qxb4 {[%clk 0:02:13.6]} 27... Rxb4 {[%clk
0:01:52.7]} 28. Rc5 {[%clk 0:02:03.3]} 28... Rxa4 {[%clk 0:01:51.4]} 29. Nc4
{[%clk 0:02:03.5]} 29... Nf6 {[%clk 0:01:26.1]} 30. b3 {[%clk 0:01:26.6]} 30...
Rb4 {[%clk 0:01:25.5]} 31. Rd3 {[%clk 0:01:26.5]} 31... a4 {[%clk 0:01:23.6]}
32. bxa4 {[%clk 0:01:26.4]} 32... Rxa4 {[%clk 0:01:24.3]} 33. Ne5 {[%clk
0:01:24.3]} 33... Ra2 {[%clk 0:01:23.7]} 34. Rf3 {[%clk 0:01:22.6]} 34... Ra7
{[%clk 0:00:58.4]} 35. Nc6 {[%clk 0:01:20.1]} 35... Rd7 {[%clk 0:00:54.5]} 36.
Ne5 {[%clk 0:01:19.7]} 36... Ra7 {[%clk 0:00:52.5]} 37. Rb5 {[%clk 0:01:20.3]}
37... Rc7 {[%clk 0:00:51.8]} 38. Ra5 {[%clk 0:01:21]} 38... Rd8 {[%clk
0:00:52.2]} 39. Ra2 {[%clk 0:01:21]} 39... Ne4 {[%clk 0:00:50.9]} 40. Re2 {[%clk
0:01:18.9]} 40... f5 {[%clk 0:00:51.7]} 41. Ng6 {[%clk 0:01:13.4]} 41... Rcd7
{[%clk 0:00:37.4]} 42. Rb3 {[%clk 0:01:11.7]} 42... Rd2 {[%clk 0:00:32.4]} 43.
Rb2 {[%clk 0:01:04.3]} 43... Rxe2 {[%clk 0:00:31.2]} 44. Rxe2 {[%clk 0:01:06.2]}
44... Kf7 {[%clk 0:00:32]} 45. Nf4 {[%clk 0:01:06.5]} 45... g5 {[%clk
0:00:29.8]} 46. hxg5 {[%clk 0:01:06.4]} 46... hxg5 {[%clk 0:00:31.7]} 47. f3
{[%clk 0:00:19.2]} 47... Nxg3 {[%clk 0:00:17.8]} 48. Nxe6 {[%clk 0:00:09.8]}
48... Nxe2 {[%clk 0:00:14.2]} 49. Nxd8+ {[%clk 0:00:08.1]} 49... Kf6 {[%clk
0:00:16.1]} 50. Nc6 {[%clk 0:00:08.4]} 50... Nf4+ {[%clk 0:00:15]} 51. Kf2
{[%clk 0:00:09.3]} 51... Nd3+ {[%clk 0:00:15.5]} 52. Ke3 {[%clk 0:00:09.7]}
52... Ne5 {[%clk 0:00:16.6]} 53. Nxe5 {[%clk 0:00:03.5]} 53... Kxe5 {[%clk
0:00:17.5]} 54. f4+ {[%clk 0:00:05]} 54... Kf6 {[%clk 0:00:14.3]} 55. fxg5+
{[%clk 0:00:05.5]} 55... Kxg5 {[%clk 0:00:15.5]} 56. Kf3 {[%clk 0:00:07.4]}
56... f4 {[%clk 0:00:16.1]} 57. Kf2 {[%clk 0:00:08.8]} 57... Kg4 {[%clk
0:00:18]} 58. Kg2 {[%clk 0:00:08.9]} 58... f3+ {[%clk 0:00:19.9]} 59. Kf2 {[%clk
0:00:09.9]} 59... Kf4 {[%clk 0:00:21.8]} 60. Kf1 {[%clk 0:00:11.4]} 60... Ke3
{[%clk 0:00:23.7]} 61. Ke1 {[%clk 0:00:09.5]} 61... Ke4 {[%clk 0:00:24.8]} 62.
Kf2 {[%clk 0:00:10.6]} 62... Kf4 {[%clk 0:00:26.4]} 63. Kf1 {[%clk 0:00:11.9]}
63... Kg3 {[%clk 0:00:28.3]} 64. Kg1 {[%clk 0:00:13.3]} 64... f2+ {[%clk
0:00:29.8]} 65. Kf1 {[%clk 0:00:14.6]} 65... Kf3 {[%clk 0:00:31.7]} 1/2-1/2